fUST/lending_fUST_20250804
["ID","MTS","AMOUNT","RATE_DAILY","PERIOD"]
[377202171,1754290232682,-500.0,0.00033408,7]
[377202172,1754290232691,-500.0,0.00033408,7]
[377202173,1754290232702,-500.0,0.00033408,7]
[377202175,1754290232712,-500.0,0.00033408,7]
[377202176,1754290232722,-500.0,0.00033408,7]
[377202177,1754290232731,-500.0,0.00033408,7]
[377202179,1754290232741,-500.0,0.00033408,2]
[377202180,1754290232750,-591.78461228,0.00033408,7]
[377202181,1754290232762,-500.0,0.00033408,7]
[377202183,1754290232771,-240.46454668,0.00033408,2]
[377202184,1754290232781,-500.0,0.00033408,7]
[377202185,1754290232790,-500.0,0.00033408,2]
[377202187,1754290232800,-500.0,0.00033408,7]
[377202188,1754290232809,-500.0,0.00033408,7]
[377202189,1754290232819,-604.67999888,0.00033408,2]
[377202191,1754290232829,-500.0,0.00033408,7]
[377202192,1754290232840,-278.17410018,0.00033408,7]
[377202194,1754290232850,-500.0,0.00033408,7]
[377202195,1754290232859,-500.0,0.00033408,2]
[377202196,1754290232869,-500.0,0.00033408,7]
[377202198,1754290232879,-500.0,0.00033408,7]
[377202199,1754290232888,-500.0,0.00033408,2]
[377202200,1754290232898,-500.0,0.00033408,7]
[377202202,1754290232908,-500.0,0.00033408,7]
[377202203,1754290232918,-500.0,0.00033408,7]
[377202205,1754290232929,-500.0,0.00033408,7]
[377202206,1754290232939,-500.0,0.00033408,2]
[377202207,1754290232950,-500.0,0.00033408,7]
[377202209,1754290232959,-328.79866159,0.00033408,7]
[377202210,1754290232969,-500.0,0.00033408,2]
[377202211,1754290232978,-500.0,0.00033408,7]
[377202213,1754290232988,-500.0,0.00033408,7]
[377202214,1754290232998,-500.0,0.00033408,2]
[377202216,1754290233010,-500.0,0.00033408,7]
[377202217,1754290233020,-500.0,0.00033408,7]
[377202218,1754290233030,-500.0,0.00033408,2]
[377202220,1754290233041,-504.87920903,0.00033408,7]
[377202221,1754290233051,-500.0,0.00033408,7]
[377202222,1754290233061,-318.36160462,0.00033408,7]
[377202224,1754290233071,-500.0,0.00033408,7]
[377202225,1754290233082,-500.0,0.00033408,7]
[377202227,1754290233092,-500.0,0.00033408,7]
[377202228,1754290233102,-500.0,0.00033408,2]
[377202229,1754290233112,-500.0,0.00033408,7]
[377202231,1754290233122,-500.0,0.00033408,2]
[377202232,1754290233132,-500.0,0.00033408,7]
[377202233,1754290233143,-500.0,0.00033408,7]
[377202235,1754290233153,-500.0,0.00033408,7]
[377202236,1754290233163,-500.0,0.00033408,7]
[377202237,1754290233173,-500.0,0.00033408,7]
[377202239,1754290233183,-500.0,0.00033408,7]
[377202240,1754290233194,-50000.0,0.00033409,2]
[377202241,1754290233204,-595.17,0.00033411,3]
[377202243,1754290233214,-297.59,0.00033411,3]
[377202244,1754290233225,-892.78,0.00033411,3]
[377202245,1754290233235,-29724.1205417,0.00033411,2]
[377202247,1754290233245,-194.806,0.0003342,35]
[377202248,1754290233255,-24900.0,0.00033421,2]
[377202250,1754290233274,-503.74849276,0.00033473,5]
[377202251,1754290233289,-500.0,0.00033473,5]
[377202252,1754290233299,-510.29445338,0.00033473,5]
[377202254,1754290233310,-543.4661324,0.00033473,2]
[377202255,1754290233320,-500.0,0.00033473,5]
[377202256,1754290233329,-500.0,0.00033473,5]
[377202258,1754290233339,-510.11317643,0.00033473,5]
[377202259,1754290233349,-500.0,0.00033473,5]
[377202261,1754290233358,-500.0,0.00033473,5]
[377202262,1754290233368,-508.738699,0.00033473,5]
[377202263,1754290233378,-504.73741654,0.00033473,5]
[377202265,1754290233387,-500.0,0.00033473,5]
[377202266,1754290233397,-500.0,0.00033473,5]
[377202267,1754290233407,-201.6849396,0.00033586,2]
[377202269,1754290233416,-1411.17258055,0.000339,29]
[377202270,1754290233426,-151.0,0.00034,120]
[377202271,1754290233435,-825.10767217,0.00034021,5]
[377202273,1754290233445,-1145.56052677,0.00034021,5]
[377202274,1754290233454,-479.79515532,0.00034021,5]
[377202275,1754290233464,-1000.0,0.00034021,5]
[377202277,1754290233473,-511.06171477,0.00034021,5]
[377202278,1754290233482,-910.16780418,0.00034194,2]
[377202280,1754290233492,-1505.85489878,0.00034568,5]
[377202281,1754290233501,-289.41770726,0.00034772,2]
[377202282,1754290233512,-1190.34,0.00034781,3]
[377202284,1754290233522,-595.18,0.00034781,3]
[377202285,1754290233532,-3400.93407601,0.00034948,2]
[377202286,1754290233542,-526.03204773,0.00035045,7]
[377202288,1754290233552,-963.8,0.000353,7]
[377202289,1754290233562,-500.0,0.00035425,5]
[377202290,1754290233571,-29724.1205417,0.00035606,3]
[377202292,1754290233581,-8081.12,0.00035616,120]
[377202293,1754290233590,-410.13482438,0.0003563,2]
[377202294,1754290233599,-3306.58,0.000357,7]
[377202296,1754290233609,-560.0,0.00035879,2]
[377202297,1754290233619,-532.60488752,0.00035973,5]
[377202303,1754290233750,-8081.12,0.00036301,120]
[377202304,1754290233761,-3400.93407601,0.00036585,2]
[377202306,1754290233771,-1190.35,0.00036678,3]
[377202307,1754290233781,-200.0,0.00036748,15]
[377202308,1754290233790,-200.0,0.00036748,15]
[377202309,1754290233800,-200.0,0.00036748,15]
[377202311,1754290233810,-8081.12,0.00036986,120]
[377202312,1754290233820,-678.71358238,0.00037386,2]
[377202313,1754290233830,-438.87266836,0.00037386,2]
[377202315,1754290233840,-8081.12,0.00037671,120]
[377202316,1754290233850,-160.0,0.00037809,2]
[377202317,1754290233860,-680.80727988,0.0003789,2]
[377202319,1754290233869,-200.0,0.00038,120]
[377202320,1754290233879,-29724.1205417,0.00038038,3]
[377202321,1754290233889,-2380.7,0.00038048,3]
[377202323,1754290233899,-3400.93407601,0.00038221,2]
[377202324,1754290233908,-8081.12,0.00038356,120]
[377202325,1754290233918,-400.0,0.00038356,120]
[377202327,1754290233928,-260.0,0.00038357,2]
[377202328,1754290233937,-551.69011606,0.000384,120]
[377202329,1754290233947,-783.0,0.00038534,5]
[377202331,1754290233956,-3306.58,0.000386,7]
[377202332,1754290233966,-1716.34970022,0.0003889,2]
[377202333,1754290233976,-360.0,0.00038905,2]
[377202335,1754290233986,-500.0,0.00038973,5]
[377202336,1754290233996,-502.38549031,0.00038973,5]
[377202337,1754290234005,-500.0,0.00038973,5]
[377202339,1754290234017,-29724.1205417,0.0003898,3]
[377202340,1754290234027,-15501.0091976,0.0003899,2]
[377202342,1754290234040,-37816.11356269,0.0003899,2]
[377202343,1754290234051,-8081.12,0.00039041,120]
[377202344,1754290234060,-1955.1821484,0.000392,120]
[377202346,1754290234072,-3049.58368214,0.000392,120]
[377202347,1754290234082,-150.5,0.00039208,120]
[377202348,1754290234093,-150.5,0.00039218,120]
[377202350,1754290234103,-150.5,0.00039228,120]
[377202351,1754290234113,-500.0,0.00039248,5]
[377202352,1754290234123,-501.69518135,0.00039248,5]
[377202354,1754290234133,-500.01162105,0.00039248,5]
[377202355,1754290234144,-500.0,0.00039248,5]
[377202357,1754290234155,-500.0,0.00039248,5]
[377202358,1754290234166,-500.59689588,0.00039248,5]
[377202359,1754290234176,-500.0,0.00039355,5]
[377202361,1754290234187,-460.0,0.00039453,2]
[377202362,1754290234196,-6540.2595695,0.00039511,3]
[377202495,1754290238348,-10401.29999999,0.00039511,3]
[377202498,1754290238414,-12782.56097221,0.00039511,3]
[377202500,1754290238424,-503.50058156,0.00039521,5]
[377202501,1754290238434,-588.22992095,0.00039521,5]
[377202502,1754290238443,-963.8,0.000397,7]
[377202504,1754290238453,-8081.12,0.00039726,120]
[377202505,1754290238462,-501.52902678,0.00039796,5]
[377202506,1754290238471,-956.42390927,0.00039796,5]
[377202508,1754290238481,-1002.02093762,0.00039796,5]
[377202509,1754290238491,-3400.93407601,0.00039858,2]
[377202510,1754290238500,-336.5453711,0.00039902,5]
[377202512,1754290238511,-29724.1205417,0.00039958,3]
[377202513,1754290238522,-50094.47375908,0.00039968,2]
[377202514,1754290238532,-29724.1205417,0.0003997,3]
[377202516,1754290238542,-500.0,0.00039973,5]
[377202517,1754290238552,-437.32267485,0.00039973,5]
[377202518,1754290238562,-502.91527638,0.00039973,5]
[377202520,1754290238571,-500.0,0.00039973,5]
[377202521,1754290238581,-502.19453057,0.00039973,5]
[377202522,1754290238592,-502.13406388,0.00039973,5]
[377202524,1754290238601,-150.0,0.00039973,3]
[377202525,1754290238612,-500.59736898,0.00039973,5]
[377202526,1754290238622,-502.16831024,0.00039973,5]
[377202528,1754290238632,-500.0,0.00039973,5]
[377202529,1754290238641,-500.0,0.00039973,5]
[377202530,1754290238653,-500.0,0.00039973,5]
[377202532,1754290238662,-500.0,0.00039973,5]
[377202533,1754290238672,-500.0,0.00039973,5]
[377202534,1754290238681,-502.48038745,0.00039973,5]
[377202536,1754290238691,-500.0,0.00039973,2]
[377202537,1754290238702,-500.0,0.00039973,5]
[377202539,1754290238711,-150.0,0.00039973,5]
[377202540,1754290238721,-502.39503866,0.00039973,2]
[377202541,1754290238731,-644.42445352,0.00039973,5]
[377202542,1754290238740,-500.0,0.00039973,5]
[377202544,1754290238749,-500.0,0.00039973,5]
[377202545,1754290238760,-500.51395473,0.00039973,5]
[377202546,1754290238772,-500.0,0.00039973,5]
[377202548,1754290238782,-638.77803454,0.00039973,5]
[377202549,1754290238791,-500.0,0.00039973,5]
[377202550,1754290238801,-500.0,0.00039973,5]
[377202552,1754290238810,-200.0,0.0003998,10]
[377202553,1754290238819,-200.0,0.0003998,10]
[377202554,1754290238828,-200.0,0.0003998,10]
[377202556,1754290238840,-200.0,0.0003998,10]
[377202557,1754290238850,-200.0,0.0003998,10]
[377202558,1754290238859,-200.0,0.0003998,10]
[377202559,1754290238869,-204.2089,0.0003998,10]
[377202560,1754290238878,-668.61314585,0.0003998,90]
[377202561,1754290238888,-668.44,0.0003998,90]
[377202562,1754290238897,-59448.2410835,0.0003998,3]
[377202563,1754290238907,-200.51551987,0.00039989,30]
[377202564,1754290238917,-2380.69,0.0003999,3]
[377202565,1754290238926,-2000.0,0.00039998,7]
[377202566,1754290238935,-224304.70842466,0.0004,120]
[377202658,1754290243541,-25615.23452312,0.0004,120]
[377202660,1754290243570,-5720.5,0.0004,120]
[377202770,1754290249209,3538.8987216,0.00032501,2]
[377203426,1754290285408,508.6921984,0.00031943,4]
[377203427,1754290285432,4491.3078016,0.00031943,4]
[377204387,1754290322178,276.165545,0.00025778,2]
[377204422,1754290322522,199.73765174,0.00026044,2]
[377208841,1754290463266,5000.0,0.00032501,2]
[377208842,1754290466998,2452.3402413,0.00032179,2]
[377208843,1754290479989,5000.0,0.00032501,2]
[377208844,1754290503133,2319.0,0.0002,2]
[377208845,1754290503339,701.0,0.0002661,3]
[377208846,1754290515289,-175.974682,0.00033404,2]
[377208847,1754290539776,-224.025318,0.00033404,2]
[377208848,1754290539810,-96.01320687,0.00033404,3]
[377208849,1754290541964,-159.31301254,0.00033404,3]
[377208850,1754290556507,479.35153741,0.00032501,2]
[377208851,1754290574054,-376.42394142,0.00033404,3]
[377208852,1754290589682,376.42394142,0.00032501,2]
[377208853,1754290617633,8704.67328153,0.0003218,2]
[377208854,1754290617658,16195.32671847,0.0003218,2]
[377208855,1754290621216,5000.0,0.00032501,2]
[377208856,1754290624644,217.84901835,0.00032402,2]
[377208857,1754290629825,5000.0,0.00032501,2]
[377208858,1754290639265,3586.82426318,0.00032501,2]
[377208859,1754290639290,1413.17573682,0.00032501,2]
[377208860,1754290644708,160.0,0.000325,7]
[377208861,1754290648702,5000.0,0.00032501,2]
[377208862,1754290657021,5000.0,0.00032501,2]
[377208863,1754290665629,267.85178465,0.00032501,2]
[377208864,1754290674938,5000.0,0.00032501,2]
[377208865,1754290699162,160.0,0.000325,21]
[377208866,1754290709872,160.0,0.000325,15]
[377208867,1754290727449,160.0,0.000325,2]
[377208868,1754290748119,160.0,0.000325,3]
[377208869,1754290770856,160.0,0.000325,4]
[377208870,1754290829832,-156.5499438,0.00033367,2]
[377208871,1754290829857,-68.60803783,0.00033402,2]
[377208872,1754290832007,-185.82828759,0.00033402,2]
[377208873,1754290841805,150.0,0.00026575,30]
[377208874,1754290842247,150.0,0.00026485,30]
[377208875,1754290857337,-172.90418563,0.00033303,2]
[377208876,1754290870975,5000.0,0.00032501,2]
[377208877,1754290880077,-201.01610443,0.00033303,2]
[377208878,1754290883489,-208.99638144,0.00033303,2]
[377208879,1754290886035,-68.19333334,0.00033303,2]
[377208880,1754290886062,-138.33531526,0.00033401,2]
[377208881,1754290887739,5000.0,0.00032501,2]
[377208882,1754290888223,-155.37189955,0.00033401,2]
[377208883,1754290891797,-106.29278519,0.00033401,2]
[377208884,1754290891822,-321.10974438,0.00033402,3]
[377208885,1754290894749,-413.29189154,0.00033401,3]
[377208886,1754290894910,162.10139,0.00032176,120]
[377208887,1754290903350,1896.87108853,0.00032501,2]
[377208888,1754290903373,3103.12891147,0.00032501,2]
[377208889,1754290919891,5000.0,0.00032501,2]
[377208890,1754290920263,-183.818179,0.00033401,3]
[377208891,1754290921795,-160.0,0.00033401,3]
[377208892,1754290925888,-193.10734889,0.00033302,2]
[377208893,1754290926755,328.723571,0.00024715,2]
[377208894,1754290927157,328.723571,0.0002497,2]
[377208895,1754290927809,464.85303841,0.00030971,2]
[377208896,1754290936264,5000.0,0.00032501,2]
[377208897,1754290942932,500.0,0.00030223,7]
[377208898,1754290952338,5000.0,0.00032501,2]
[377208899,1754290971793,536.92552789,0.00032501,2]
[377208900,1754291004375,212.1712823,0.00032213,2]
[377208901,1754291039070,-206.01154556,0.000334,3]
[377208902,1754291042540,-93.98845444,0.000334,3]
[377208903,1754291042563,-67.44345486,0.000334,2]
[377208904,1754291045187,-278.29680352,0.00033401,3]
[377208905,1754291046703,-329.20922547,0.000334,2]
[377208906,1754291047145,367.44345486,0.00032501,2]
[377208907,1754291048812,-70.79077453,0.000334,2]
[377208908,1754291048836,-43.59312594,0.00033401,3]
[377208909,1754291048862,-106.2283548,0.00033401,2]
[377208910,1754291051776,-181.70319648,0.00033401,2]
[377208911,1754291053940,-174.48881522,0.00033401,2]
[377208912,1754291056124,-37.5796335,0.00033401,2]
[377208913,1754291056147,-145.29220026,0.00033401,7]
[377208946,1754291103136,1897.99499484,0.0002378,2]
[377208948,1754291161285,150.0,0.00026575,30]
[377208949,1754291161830,150.0,0.00026485,30]
[377208950,1754291174258,-223.45009498,0.00032826,2]
[377208951,1754291177503,-174.88186717,0.00032826,2]
[377208952,1754291180243,-281.22107599,0.00032826,2]
[377208953,1754291182774,-300.0,0.00032826,2]
[377208954,1754291185613,-166.39,0.00032826,2]
[377208955,1754291188942,-38.36725782,0.00032826,2]
[377208956,1754291190721,150.0,0.00030401,2]
[377208957,1754291196752,971.06117097,0.00032501,2]
[377208958,1754291229133,537.901702,0.00024715,2]
[377208959,1754291229475,437.60727352,0.0002497,2]
[377208960,1754291229834,218.80363676,0.00030969,2]
[377208961,1754291238265,500.0,0.00031527,7]
[377208962,1754291245420,460.95174316,0.00032501,7]
[377209013,1754291290195,163.0,0.00024,120]
[377209018,1754291294778,166.4230579,0.00032211,2]
[377209031,1754291304965,531.99667,0.00032197,2]
[377209032,1754291328869,2822.29039392,0.00032501,2]
[377209033,1754291328894,1481.7780383,0.00032501,2]
[377209034,1754291346566,986.17125367,0.00032501,2]
[377209035,1754291355625,1665.89,0.00032501,2]
[377209036,1754291363419,1419.77397296,0.00032501,2]
[377209037,1754291363444,3289.98634115,0.00032501,2]
[377209038,1754291372100,4119.51421909,0.00032501,2]
[377209039,1754291380843,5000.0,0.00032501,2]
[377209046,1754291432800,-174.882,0.00033311,2]
[377209047,1754291432810,-300.0,0.00033396,3]
[377209048,1754291432820,-244.0,0.00033397,3]
[377209049,1754291432829,-400.0,0.00033397,2]
[377209050,1754291432839,-1600.0,0.00033397,3]
[377209051,1754291432848,-300.0,0.00033397,3]
[377209052,1754291432857,-500.0,0.00033398,2]
[377209053,1754291432866,-500.0,0.00033398,7]
[377209054,1754291432875,-500.0,0.00033398,7]
[377209055,1754291432884,-500.0,0.00033398,7]
[377209056,1754291432893,-500.0,0.00033398,7]
[377209057,1754291432902,-438.39547886,0.00033398,2]
[377209169,1754291438663,-376.40641949,0.00033397,2]
[377209170,1754291438672,-500.0,0.00033397,7]
[377209171,1754291438682,-500.0,0.00033397,7]
[377209172,1754291438691,-500.0,0.00033397,7]
[377209173,1754291438701,-505.55070811,0.00033397,7]
[377209174,1754291438710,-500.0,0.00033397,2]
[377209175,1754291438720,-500.0,0.00033397,2]
[377209176,1754291438730,-416.86310623,0.00033397,7]
[377209178,1754291438740,-500.0,0.00033397,7]
[377209180,1754291438749,-500.0,0.00033397,7]
[377209181,1754291438759,-500.0,0.00033397,7]
[377209182,1754291438768,-500.0,0.00033397,2]
[377209183,1754291438777,-500.0,0.00033397,7]
[377209184,1754291438786,-500.0,0.00033397,2]
[377209185,1754291438795,-500.0,0.00033397,7]
[377209186,1754291438804,-278.38111714,0.00033397,7]
[377209187,1754291438814,-439.41611076,0.00033397,7]
[377209188,1754291438823,-500.0,0.00033397,7]
[377209189,1754291438832,-500.0,0.00033397,2]
[377209190,1754291438842,-500.0,0.00033397,2]
[377209191,1754291438851,-500.0,0.00033397,7]
[377209192,1754291438861,-500.0,0.00033397,7]
[377209193,1754291438870,-500.0,0.00033397,2]
[377209194,1754291438880,-500.0,0.00033397,2]
[377209195,1754291438890,-431.60463661,0.00033397,7]
[377209196,1754291438899,-500.0,0.00033397,7]
[377209197,1754291438909,-500.0,0.00033397,7]
[377209198,1754291438919,-500.0,0.00033397,2]
[377209199,1754291438929,-500.0,0.00033397,2]
[377209200,1754291438939,-500.0,0.00033397,7]
[377209201,1754291438949,-500.0,0.00033397,7]
[377209202,1754291438959,-500.0,0.00033397,2]
[377209203,1754291438969,-500.0,0.00033397,7]
[377209204,1754291438979,-500.0,0.00033397,7]
[377209205,1754291438988,-500.0,0.00033397,2]
[377209206,1754291438999,-500.0,0.00033397,2]
[377209207,1754291439008,-500.0,0.00033397,7]
[377209208,1754291439017,-500.0,0.00033397,7]
[377209209,1754291439026,-500.0,0.00033397,2]
[377209210,1754291439035,-500.0,0.00033397,2]
[377209211,1754291439044,-500.0,0.00033397,7]
[377209212,1754291439053,-500.0,0.00033397,2]
[377209213,1754291439062,-500.0,0.00033397,7]
[377209214,1754291439071,-500.0,0.00033397,7]
[377209215,1754291439081,-500.0,0.00033397,7]
[377209216,1754291439091,-500.0,0.00033397,2]
[377209217,1754291439101,-500.0,0.00033397,7]
[377209218,1754291439111,-358.32425602,0.00033397,2]
[377209219,1754291439238,-500.0,0.00033397,7]
[377209220,1754291439250,-500.0,0.00033397,2]
[377209221,1754291439260,-500.0,0.00033397,7]
[377209222,1754291439269,-500.0,0.00033397,2]
[377209223,1754291439279,-500.0,0.00033397,7]
[377209224,1754291439289,-500.0,0.00033397,2]
[377209225,1754291439298,-500.0,0.00033397,7]
[377209226,1754291439307,-500.0,0.00033397,7]
[377209227,1754291439317,-500.0,0.00033397,2]
[377209228,1754291439326,-500.0,0.00033397,7]
[377209229,1754291439336,-500.0,0.00033397,2]
[377209230,1754291439347,-500.0,0.00033397,7]
[377209231,1754291439356,-500.0,0.00033397,2]
[377209232,1754291439366,-500.0,0.00033397,7]
[377209233,1754291439376,-500.0,0.00033397,7]
[377209234,1754291439385,-470.38744773,0.00033397,2]
[377209235,1754291439395,-357.18890262,0.00033397,7]
[377209236,1754291439405,-500.0,0.00033397,2]
[377209237,1754291439415,-500.0,0.00033397,7]
[377209238,1754291439425,-500.0,0.00033397,2]
[377209239,1754291439435,-500.0,0.00033397,7]
[377209240,1754291439445,-500.0,0.00033397,7]
[377209241,1754291439455,-500.0,0.00033397,2]
[377209242,1754291439465,-500.0,0.00033397,7]
[377209243,1754291439476,-500.0,0.00033397,7]
[377209244,1754291439487,-500.0,0.00033397,2]
[377209245,1754291439497,-500.0,0.00033397,7]
[377209246,1754291439508,-500.0,0.00033397,2]
[377209247,1754291439518,-500.0,0.00033397,7]
[377209248,1754291439530,-500.0,0.00033397,2]
[377209249,1754291439542,-500.0,0.00033397,7]
[377209250,1754291439551,-500.0,0.00033397,7]
[377209251,1754291439563,-500.0,0.00033397,2]
[377209252,1754291439575,-500.0,0.00033397,7]
[377209253,1754291439585,-500.0,0.00033397,2]
[377209254,1754291439596,-500.0,0.00033397,7]
[377209255,1754291439607,-500.0,0.00033397,7]
[377209256,1754291439617,-641.29658546,0.00033397,7]
[377209257,1754291439627,-231.67098287,0.00033398,7]
[377209258,1754291439636,-13678.92628473,0.00033398,2]
[377209259,1754291439646,-215.16777298,0.00033399,7]
[377209260,1754291439656,-842.05743881,0.00033399,7]
[377209261,1754291439665,-155.844,0.00033402,35]
[377209262,1754291439675,-600.55385442,0.00033404,2]
[377209263,1754291439685,-500.0,0.00033418,120]
[377209264,1754291439695,-500.0,0.00033884,120]
[377209265,1754291439704,-1398.42902329,0.000339,29]
[377209266,1754291439714,-260.79,0.00034002,2]
[377209267,1754291439724,-200.0,0.00034279,120]
[377209268,1754291439734,-500.0,0.0003435,120]
[377209269,1754291439743,-500.0,0.00034816,120]
[377209270,1754291439753,-200.0,0.00034921,120]
[377209271,1754291439762,-500.0,0.00035281,120]
[377209272,1754291439771,-150.0,0.00035401,2]
[377209273,1754291439781,-500.0,0.00035747,120]
[377209274,1754291439790,-417.0,0.00035869,2]
[377209275,1754291439799,-151.0,0.00036124,2]
[377209276,1754291439808,-151.0,0.00036124,2]
[377209277,1754291439818,-151.0,0.00036124,2]
[377209278,1754291439827,-151.0,0.00036124,2]
[377209279,1754291439836,-151.0,0.00036124,2]
[377209280,1754291439846,-151.0,0.00036124,2]
[377209281,1754291439856,-151.0,0.00036124,2]
[377209282,1754291439865,-151.0,0.00036124,2]
[377209283,1754291439874,-151.0,0.00036124,2]
[377209284,1754291439884,-151.0,0.00036124,2]
[377209285,1754291439893,-151.0,0.00036124,2]
[377209286,1754291439903,-151.0,0.00036124,2]
[377209287,1754291439914,-151.0,0.00036124,2]
[377209288,1754291439923,-151.0,0.00036124,2]
[377209289,1754291439933,-151.0,0.00036124,2]
[377209290,1754291439942,-151.0,0.00036124,2]
[377209291,1754291439952,-151.0,0.00036124,2]
[377209292,1754291439962,-151.0,0.00036124,2]
[377209293,1754291439973,-500.0,0.00036213,120]
[377209294,1754291439982,-500.0,0.00036679,120]
[377209295,1754291439992,-200.0,0.00036737,15]
[377209296,1754291440002,-200.0,0.00036737,15]
[377209297,1754291440012,-200.0,0.00036737,15]
[377209298,1754291440022,-500.0,0.00037144,120]
[377209299,1754291440031,-800.0,0.0003735,7]
[377209300,1754291440041,-163.90172544,0.00037388,7]
[377209301,1754291440051,-800.0,0.00037441,7]
[377209302,1754291440060,-800.0,0.00037469,7]
[377209303,1754291440070,-800.0,0.00037471,7]
[377209304,1754291440081,-500.0,0.0003761,120]
[377209305,1754291440093,-160.0,0.0003788,2]
[377209306,1754291440102,-500.0,0.00037918,5]
[377209307,1754291440112,-500.0,0.00037956,5]
[377209308,1754291440121,-500.0,0.00037956,5]
[377209309,1754291440132,-240.49553704,0.00037983,5]
[377209310,1754291440141,-465.5806664,0.00038076,120]
[377209311,1754291440151,-800.0,0.00038247,7]
[377209312,1754291440162,-479.22861562,0.00038374,120]
[377209313,1754291440174,-260.0,0.00038428,2]
[377209314,1754291440184,-1000.0,0.00038466,5]
[377209315,1754291440194,-1000.0,0.00038504,5]
[377209316,1754291440204,-1100.0,0.000389,120]
[377209317,1754291440214,-508.02329547,0.00038976,2]
[377209318,1754291440225,-1500.0,0.00039014,5]
[377209319,1754291440234,-1500.0,0.00039051,5]
[377209320,1754291440244,-2000.0,0.00039562,5]
[377209321,1754291440254,-1638.89875822,0.00039583,2]
[377209323,1754291440264,-1000.0,0.00039599,5]
[377209324,1754291440273,-160.0,0.000398,30]
[377209325,1754291440282,-160.0,0.000398,35]
[377209326,1754291440292,-162.0,0.000398,21]
[377209327,1754291440302,-1144.23313348,0.000399,2]
[377209328,1754291440312,-312.16666667,0.0003998,120]
[377209329,1754291440322,-842.05743881,0.0003998,120]
[377209330,1754291440332,-32696.5325959,0.0003998,3]
[377209331,1754291440343,-231.67098287,0.0003998,3]
[377209332,1754291440353,-500.0,0.00039988,31]
[377209333,1754291440362,-240.66093325,0.00039988,31]
[377209334,1754291440372,-8216.52,0.00039989,120]
[377209335,1754291440382,-793.56,0.0003999,3]
[377209336,1754291440392,-396.78,0.0003999,3]
[377209337,1754291440401,-198.39,0.0003999,3]
[377209338,1754291440411,-595.19,0.0003999,3]
[377209339,1754291440421,-215.16777298,0.0003999,3]
[377209340,1754291440430,-98089.5977878,0.0003999,3]
[377209341,1754291440440,-842.05743881,0.0003999,3]
[377209342,1754291440449,-160.0,0.00039994,2]
[377209343,1754291440459,-160.0,0.00039994,2]
[377209344,1754291440468,-160.0,0.00039994,2]
[377209345,1754291440478,-1757.0,0.00039998,14]
[377209346,1754291440487,-1757.0,0.00039998,14]
[377209347,1754291440497,-1757.0,0.00039998,14]
[377209348,1754291440506,-1757.0,0.00039998,14]
[377209349,1754291440516,-160.0,0.00039998,14]
[377209350,1754291440528,-1757.0,0.00039998,14]
[377209351,1754291440539,-161.8948577,0.00039998,14]
[377209352,1754291440550,-1757.0,0.00039998,14]
[377209353,1754291440560,-1757.0,0.00039998,14]
[377209354,1754291440570,-1043.20570173,0.00039998,14]
[377209355,1754291440579,-152.0,0.00039998,14]
[377209356,1754291440589,-200.0,0.00039999,30]
[377209357,1754291440599,-151.0,0.00039999,120]
[377209359,1754291440609,-151.0,0.00039999,120]